bitfinex-derivatives/quotes_SOLF0:USTF0_20250716
["timestamp","ask_amount","ask_price","bid_price","bid_amount"]
[1752663809432,4.13524679,166.36,166.28,6.00371234]
[1752663809629,4.13524679,166.36,166.27,4.13524679]
[1752663811928,4.13524679,166.36,166.28,6.00587786]
[1752663812127,4.13524679,166.36,166.27,4.13524679]
[1752663812426,4.13524679,166.36,166.28,6.00642186]
[1752663812628,4.13524679,166.36,166.27,4.13524679]
[1752663816536,4.13524679,166.34,166.25,179.85524679]
[1752663816831,4.13524679,166.34,166.26,6.01166922]
[1752663817035,4.13524679,166.32,166.27,6.01166922]
[1752663817230,4.13524679,166.3,166.25,175.72]
[1752663817532,4.13524679,166.3,166.26,6.01326599]
[1752663817730,4.13524679,166.3,166.27,6.01326599]
[1752663817926,4.13524679,166.3,166.25,175.72]
[1752663818135,4.13524679,166.3,166.26,6.01364933]
[1752663818334,4.13524679,166.3,166.25,175.72]
[1752663818734,4.13524679,166.32,166.25,175.72]
[1752663826035,4.13524679,166.32,166.23,4.13524679]
[1752663826239,4.13524679,166.32,166.24,175.64]
[1752663830846,4.13524679,166.32,166.25,4.13524679]
[1752663832642,13.28156973,166.37,166.25,4.13524679]
[1752663832943,4.13524679,166.33,166.26,175.64]
[1752663833445,4.13524679,166.35,166.27,4.13524679]
[1752663836546,4.13524679,166.37,166.29,4.13524679]
[1752663836846,4.13524679,166.37,166.28,4.13524679]
[1752663837047,4.13524679,166.35,166.28,4.13524679]
[1752663838544,4.13524679,166.35,166.29,175.6]
[1752663839444,13.28156973,166.39,166.29,175.6]
[1752663839746,4.13524679,166.36,166.29,175.6]
[1752663842248,4.13524679,166.34,166.29,175.6]
[1752663842441,285.4777279,166.4,166.26,175.58]
[1752663842442,4.13524679,166.32,166.26,175.58]
[1752663842846,4.13524679,166.33,166.26,175.58]
[1752663844550,4.13524679,166.34,166.27,4.13524679]
[1752663845255,4.13524679,166.34,166.26,175.58]
[1752663850063,4.13524679,166.32,166.26,175.58]
[1752663851863,4.13524679,166.3,166.26,175.58]
[1752663853156,4.13524679,166.3,166.21,523.59524679]
[1752663853460,4.13524679,166.28,166.21,519.46]
[1752663853855,4.13524679,166.26,166.21,519.46]
[1752663856065,4.13524679,166.28,166.21,519.46]
[1752663858068,4.13524679,166.26,166.21,519.46]
[1752663861771,4.13524679,166.24,166.21,519.46]
[1752663861971,4.13524679,166.22,166.2,179.10454]
[1752663864175,4.13524679,166.22,166.2,3.56454]
[1752663864875,13.2912345,166.31,166.2,3.56454]
[1752663865071,4.13524679,166.25,166.2,3.56454]
[1752663867874,4.13524679,166.26,166.2,179.10454]
[1752663868175,4.14455375,166.21,166.12,4.14455375]
[1752663868370,4.14455375,166.21,166.13,175.54]
[1752663869665,4.14455375,166.21,166.13,179.68455375]
[1752663869866,4.14455375,166.21,166.13,175.54]
[1752663874075,4.14455375,166.21,166.14,4.14455375]
[1752663874573,13.2912345,166.3,166.14,4.14455375]
[1752663874777,4.14455375,166.23,166.14,4.14455375]
[1752663877077,27.27486222,166.3,166.14,4.14455375]
[1752663877279,4.14455375,166.24,166.16,4.14455375]
[1752663878377,4.14455375,166.26,166.18,4.14455375]
[1752663878578,4.14455375,166.26,166.19,175.54]
[1752663879877,4.14455375,166.24,166.19,175.54]
[1752663880873,4.14455375,166.22,166.15,519.86]
[1752663881069,4.14455375,166.2,166.15,695.4]
[1752663882477,13.98362772,166.3,166.15,695.4]
[1752663882478,4.14455375,166.22,166.15,695.4]
[1752663890980,4.14455375,166.24,166.16,4.14455375]
[1752663892482,13.2912345,166.28,166.16,4.14455375]
[1752663892686,4.14455375,166.25,166.16,4.14455375]
[1752663898485,4.14455375,166.25,166.18,4.14455375]
[1752663898681,4.14455375,166.25,166.19,175.46]
[1752663899487,4.14455375,166.25,166.18,4.14455375]
[1752663899785,4.14455375,166.25,166.19,175.46]
[1752663900585,4.14455375,166.25,166.2,175.46]
[1752663903087,4.14455375,166.27,166.2,175.46]
[1752663904686,13.2912345,166.29,166.2,179.60455375]
[1752663904889,4.14455375,166.29,166.22,4.14455375]
[1752663905083,4.14455375,166.29,166.2,175.46]
[1752663905288,4.14455375,166.29,166.22,4.14455375]
[1752663905690,13.98362772,166.3,166.22,4.14455375]
[1752663906787,4.14455375,166.31,166.22,4.14455375]
[1752663907093,4.14455375,166.31,166.24,4.14455375]
[1752663907385,4.14455375,166.33,166.25,175.42]
[1752663907590,13.2912345,166.37,166.25,175.42]
[1752663907786,4.14455375,166.33,166.25,175.42]
[1752663914788,13.2912345,166.39,166.25,175.42]
[1752663914989,4.14455375,166.33,166.26,4.14455375]
[1752663915390,4.14455375,166.33,166.25,175.42]
[1752663929901,282.38883016,166.4,166.25,175.42]
[1752663930196,4.14455375,166.33,166.25,175.42]
[1752663932803,4.14455375,166.33,166.25,179.56455375]
[1752663932998,2.64816566,166.31,166.27,2.64816566]
[1752663936404,13.2912345,166.38,166.27,2.64816566]
[1752663936706,2.64816566,166.31,166.27,2.64816566]
[1752663937809,2.64816566,166.31,166.25,175.42]
[1752663938002,2.64816566,166.31,166.28,2.64816566]
[1752663938205,2.64816566,166.32,166.28,2.64816566]
[1752663940803,13.2912345,166.38,166.28,2.64816566]
[1752663941008,2.64816566,166.32,166.28,2.64816566]
[1752663942312,13.2912345,166.37,166.29,2.64816566]
[1752663942603,2.64816566,166.34,166.3,2.64816566]
[1752663944006,179.58611057,166.39,166.3,2.64816566]
[1752663944206,2.64816566,166.34,166.3,2.64816566]
[1752663944508,2.64816566,166.35,166.31,2.64816566]
[1752663945007,2.64816566,166.36,166.31,2.64816566]
[1752663945608,2.64816566,166.37,166.33,2.64816566]
[1752663946812,2.64816566,166.38,166.33,2.64816566]
[1752663947411,2.64816566,166.38,166.34,2.64816566]
[1752663947705,124.0,166.4,166.34,2.64816566]
[1752663948009,2.64816566,166.38,166.35,2.64816566]
[1752663948202,2.64816566,166.38,166.34,2.64816566]
[1752663950509,2.64816566,166.39,166.34,2.64816566]
[1752663951917,2.64816566,166.39,166.35,2.64816566]
[1752663954717,2.64816566,166.38,166.25,695.0]
[1752663954914,2.64816566,166.37,166.33,2.64816566]
[1752663956515,2.64816566,166.38,166.33,2.64816566]
[1752663958919,2.64816566,166.37,166.33,2.64816566]
[1752663959620,2.64816566,166.38,166.33,2.64816566]
[1752663959918,2.64816566,166.37,166.33,2.64816566]
[1752663960916,124.0,166.4,166.33,2.64816566]
[1752663961221,2.64816566,166.38,166.33,2.64816566]
[1752663962717,124.0,166.4,166.34,2.64816566]
[1752663962923,2.64816566,166.39,166.34,2.64816566]
[1752663963822,124.0,166.4,166.36,2.64816566]
[1752663964024,126.64816566,166.4,166.36,2.64816566]
[1752663964422,126.64816566,166.4,166.26,4.81313859]
[1752663964622,126.64816566,166.4,166.34,2.64816566]
[1752663964822,2.64816566,166.38,166.34,2.64816566]
[1752663967620,2.64816566,166.39,166.34,2.64816566]
[1752663968226,124.0,166.4,166.34,2.64816566]
[1752663968425,2.64816566,166.39,166.34,2.64816566]
[1752663968727,2.64816566,166.39,166.35,2.64816566]
[1752663970527,124.0,166.4,166.35,2.64816566]
[1752663970727,124.0,166.4,166.36,2.64816566]
[1752663971023,126.64816566,166.4,166.27,174.98]
[1752663971229,124.0,166.4,166.34,2.64816566]
[1752663971424,2.64816566,166.39,166.34,2.64816566]
[1752663972830,124.0,166.4,166.34,2.64816566]
[1752663973128,2.64816566,166.39,166.34,2.64816566]
[1752663974830,124.0,166.4,166.34,2.64816566]
[1752663975031,2.64816566,166.39,166.34,2.64816566]
[1752663975424,2.64816566,166.39,166.36,2.64816566]
[1752663975627,126.64816566,166.4,166.36,2.64816566]
[1752663976332,124.0,166.4,166.36,2.64816566]
[1752663976534,126.64816566,166.4,166.36,2.64816566]
[1752663977634,124.0,166.4,166.36,2.64816566]
[1752663978133,126.64816566,166.4,166.36,2.64816566]
[1752663978527,124.0,166.4,166.28,4.81176151]
[1752663978831,124.0,166.4,166.37,2.64816566]
[1752663979032,124.0,166.4,166.39,2.64816566]
[1752663979335,124.0,166.4,166.38,2.64816566]
[1752663980338,2.64816566,166.42,166.38,2.64816566]
[1752663980935,126.64816566,166.41,166.37,2.64816566]
[1752663983337,126.64816566,166.41,166.35,174.88]
[1752663983636,126.64816566,166.41,166.37,2.64816566]
[1752663985337,126.64816566,166.41,166.33,519.3]
[1752663985631,2.64816566,166.37,166.34,174.82]
[1752663985831,2.64816566,166.38,166.34,174.82]
[1752663986236,2.64816566,166.37,166.34,174.82]
[1752663986936,2.64816566,166.38,166.34,174.82]
[1752663988137,124.0,166.41,166.34,174.82]
[1752663988336,2.64816566,166.38,166.34,174.82]
[1752663988540,124.0,166.41,166.34,174.82]
[1752663989037,2.64816566,166.38,166.34,174.82]
[1752663991037,124.0,166.41,166.34,177.46816566]
[1752663991238,2.64816566,166.38,166.34,177.46816566]
[1752663993635,2.64816566,166.38,166.34,174.82]
[1752663993835,2.64816566,166.38,166.34,177.46816566]
[1752663996540,124.0,166.41,166.34,177.46816566]
[1752663996935,2.64816566,166.39,166.34,177.46816566]
[1752663999239,2.64816566,166.4,166.34,177.46816566]
[1752664000739,2.64816566,166.4,166.34,174.82]
[1752664000940,2.64816566,166.38,166.34,177.46816566]
[1752664002941,2.64590718,166.38,166.34,177.46590718]
[1752664003937,2.64590718,166.39,166.34,177.46590718]
[1752664005337,13.2912345,166.44,166.36,2.64590718]
[1752664005544,2.64590718,166.42,166.36,2.64590718]
[1752664005844,126.64590718,166.41,166.36,2.64590718]
[1752664006140,126.64590718,166.41,166.34,174.82]
[1752664006141,126.64590718,166.41,166.35,2.64590718]
[1752664008946,124.0,166.41,166.35,2.64590718]
[1752664009145,126.64590718,166.41,166.35,2.64590718]
[1752664010748,124.0,166.41,166.35,2.64590718]
[1752664010947,126.64590718,166.41,166.35,2.64590718]
[1752664012152,126.6451809,166.41,166.36,2.6451809]
[1752664019256,126.6451809,166.41,166.34,174.82]
[1752664019452,126.6451809,166.41,166.36,2.6451809]
[1752664020357,126.6451809,166.41,166.34,174.82]
[1752664020556,2.6451809,166.4,166.36,2.6451809]
[1752664022954,2.6451809,166.4,166.34,174.82]
[1752664023258,2.6451809,166.4,166.35,5.99380229]
[1752664023557,2.6451809,166.38,166.35,174.62]
[1752664024458,2.6451809,166.39,166.35,174.62]
[1752664026259,2.6451809,166.38,166.35,174.62]
[1752664028356,2.6451809,166.39,166.36,5.99539196]
[1752664028555,2.6451809,166.39,166.35,177.2651809]
[1752664028759,2.6451809,166.39,166.36,5.99539196]
[1752664028961,2.6451809,166.39,166.35,177.2651809]
[1752664029160,124.0,166.41,166.36,8.64057286]
[1752664029460,2.6451809,166.4,166.37,5.99584031]
[1752664029660,2.6451809,166.4,166.36,2.6451809]
[1752664029962,2.6451809,166.4,166.37,5.99567764]
[1752664030160,2.6451809,166.4,166.36,2.6451809]
[1752664030362,2.6451809,166.4,166.37,5.99578607]
[1752664030558,2.6451809,166.4,166.36,2.6451809]
[1752664030861,2.6451809,166.4,166.37,5.99644812]
[1752664031060,2.6451809,166.4,166.35,177.2651809]
[1752664031359,2.6451809,166.4,166.36,5.99646122]
[1752664031551,2.6451809,166.4,166.37,5.99646122]
[1752664031756,2.6451809,166.4,166.35,177.2651809]
[1752664031954,2.6451809,166.39,166.36,5.99648504]
[1752664032261,2.6451809,166.4,166.35,177.2651809]
[1752664032465,2.6451809,166.4,166.36,5.99675582]
[1752664032761,2.6451809,166.4,166.36,2.6451809]
[1752664033461,2.6451809,166.4,166.37,5.99671637]
[1752664033662,2.6451809,166.4,166.36,2.6451809]
[1752664033961,2.6451809,166.4,166.37,5.99671525]
[1752664034170,2.6451809,166.4,166.35,177.2651809]
[1752664034366,2.6451809,166.4,166.36,5.99626745]
[1752664034555,2.6451809,166.4,166.35,177.2651809]
[1752664034760,2.6451809,166.4,166.36,8.64149531]
[1752664035063,2.6451809,166.4,166.36,2.6451809]
[1752664035257,2.6451809,166.4,166.37,5.99639338]
[1752664035460,2.6451809,166.4,166.35,177.2651809]
[1752664035657,2.6451809,166.4,166.36,5.99646924]
[1752664035858,2.6451809,166.4,166.35,177.2651809]
[1752664036061,2.6451809,166.4,166.36,8.64165127]
[1752664036361,2.6451809,166.4,166.36,2.6451809]
[1752664036965,2.6451809,166.39,166.35,174.62]
[1752664037263,2.6451809,166.39,166.36,5.99660494]
[1752664037460,2.6451809,166.39,166.35,177.2651809]
[1752664037668,2.6451809,166.39,166.36,5.99674667]
[1752664037864,2.6451809,166.39,166.35,177.2651809]
[1752664038067,2.6451809,166.39,166.36,5.99674667]
[1752664038268,2.6451809,166.39,166.35,177.2651809]
[1752664038469,2.6451809,166.39,166.36,5.99689264]
[1752664038661,2.6451809,166.39,166.35,177.2651809]
[1752664038966,2.6451809,166.39,166.36,5.99689264]
[1752664039168,2.6451809,166.39,166.35,177.2651809]
[1752664039373,2.6451809,166.4,166.36,5.99702217]
[1752664039570,2.6451809,166.4,166.35,177.2651809]
[1752664039759,2.6451809,166.4,166.36,5.99711651]
[1752664039963,2.6451809,166.4,166.35,177.2651809]
[1752664040160,2.6451809,166.4,166.36,5.99711651]
[1752664040361,2.6451809,166.4,166.35,177.2651809]
[1752664040562,2.6451809,166.4,166.36,5.99717863]
[1752664040760,2.6451809,166.4,166.35,177.2651809]
[1752664040971,2.6451809,166.4,166.36,5.99717863]
[1752664041270,2.6451809,166.4,166.35,177.2651809]
[1752664041470,2.6451809,166.4,166.36,5.99713892]
[1752664041675,2.6451809,166.4,166.35,177.2651809]
[1752664041866,2.6451809,166.4,166.36,5.99713892]
[1752664042062,124.0,166.41,166.36,2.6451809]
[1752664042263,2.6451809,166.4,166.36,2.6451809]
[1752664043876,2.6451809,166.38,166.34,2.6451809]
[1752664044075,2.6451809,166.38,166.35,180.5171615]
[1752664044277,2.6451809,166.38,166.35,174.52]
[1752664044670,2.6451809,166.37,166.35,174.52]
[1752664045270,137.2912345,166.41,166.35,174.52]
[1752664045475,2.6451809,166.37,166.35,174.52]
[1752664050781,2.6451809,166.36,166.3,519.28]
[1752664050976,2.6451809,166.34,166.31,180.50943914]
[1752664051184,2.6451809,166.34,166.32,6.00943914]
[1752664051376,2.6451809,166.34,166.31,174.5]
[1752664053982,13.2912345,166.4,166.31,177.1451809]
[1752664054183,2.6451809,166.35,166.31,177.1451809]
[1752664056186,2.6451809,166.34,166.31,174.5]
[1752664057380,2.6451809,166.35,166.31,174.5]
[1752664058590,2.6451809,166.36,166.32,2.6451809]
[1752664059086,2.6451809,166.36,166.31,177.1451809]
[1752664059286,2.6451809,166.35,166.31,177.1451809]
[1752664063791,2.6451809,166.34,166.31,174.5]
[1752664064091,2.6451809,166.33,166.31,174.5]
[1752664064289,2.6451809,166.34,166.31,174.5]
[1752664064489,2.6451809,166.35,166.31,177.1451809]
[1752664064891,2.6451809,166.35,166.31,174.5]
[1752664065484,2.6451809,166.34,166.31,174.5]
[1752664069196,2.6451809,166.33,166.31,174.5]
[1752664072594,2.6451809,166.34,166.31,174.5]
[1752664077497,2.6451809,166.33,166.31,174.5]
[1752664077801,2.6451809,166.32,166.29,175.40862]
[1752664077998,2.64872667,166.3,166.29,175.40862]
[1752664079301,2.64872667,166.3,166.29,1.00862]
[1752664087311,13.2912345,166.35,166.29,1.00862]
[1752664087505,2.64872667,166.3,166.29,1.00862]
[1752664089513,2.6491383,166.3,166.29,1.00862]
[1752664099917,13.2912345,166.35,166.29,1.00862]
[1752664100119,137.2912345,166.41,166.29,1.00862]
[1752664100415,124.0,166.41,166.35,2.64918192]
[1752664100621,126.64918192,166.41,166.36,174.36]
[1752664101016,2.64555333,166.4,166.36,174.36]
[1752664102924,124.0,166.41,166.36,174.36]
[1752664113129,4.13355169,166.4,166.29,1.00862]
[1752664113334,124.0,166.41,166.33,4.13355169]
[1752664115135,124.0,166.41,166.35,4.13355169]
[1752664115337,124.0,166.41,166.36,174.2]
[1752664120845,124.0,166.41,166.37,4.13355169]
[1752664122344,124.0,166.41,166.36,174.2]
[1752664122947,124.0,166.41,166.37,2.64467439]
[1752664123149,2.64467439,166.4,166.36,174.16]
[1752664123646,124.0,166.41,166.36,174.16]
[1752664123846,2.64467439,166.4,166.36,174.16]
[1752664124550,2.64467439,166.4,166.35,176.78467439]
[1752664125051,128.13342778,166.41,166.35,174.14]
[1752664128745,128.13342778,166.41,166.35,174.12]
[1752664129049,4.13342778,166.37,166.29,1.00862]
[1752664129351,4.13342778,166.37,166.3,174.12]
[1752664136160,4.13342778,166.37,166.29,1.00862]
[1752664136360,4.13342778,166.37,166.31,174.1]
[1752664138957,4.13342778,166.39,166.31,174.1]
[1752664139262,4.13342778,166.39,166.32,4.13342778]
[1752664140553,4.13342778,166.39,166.31,174.1]
[1752664140761,4.13342778,166.39,166.31,178.23342778]
[1752664142660,4.13342778,166.4,166.31,178.23342778]
[1752664142860,4.13342778,166.4,166.31,174.1]
[1752664143060,4.13342778,166.4,166.31,178.23342778]
[1752664146168,124.0,166.41,166.31,178.23342778]
[1752664146366,4.13342778,166.4,166.32,5.98177859]
[1752664146567,4.13342778,166.4,166.31,178.23342778]
[1752664146866,4.13342778,166.4,166.32,5.98151713]
[1752664147066,4.13342778,166.4,166.31,178.23342778]
[1752664147266,4.13342778,166.4,166.32,5.98151713]
[1752664147460,4.13342778,166.4,166.31,178.23342778]
[1752664147661,4.13342778,166.4,166.32,5.98150943]
[1752664147961,4.13342778,166.4,166.31,178.23342778]
[1752664148259,4.13342778,166.4,166.32,5.98150938]
[1752664148455,4.13342778,166.38,166.31,174.1]
[1752664148655,124.0,166.41,166.32,5.9815251]
[1752664148656,4.13342778,166.36,166.32,5.9815251]
[1752664148859,4.13342778,166.36,166.33,174.08]
[1752664154564,137.33015892,166.41,166.33,174.08]
[1752664154769,4.13342778,166.38,166.33,174.08]
[1752664155368,4.13342778,166.36,166.33,174.08]
[1752664158265,4.13342778,166.36,166.3,519.36]
[1752664158466,4.13342778,166.36,166.31,174.06]
[1752664159468,4.13342778,166.36,166.3,519.36]
[1752664159669,4.13342778,166.36,166.31,174.06]
[1752664162673,4.13342778,166.36,166.3,519.36]
[1752664162872,4.13342778,166.36,166.31,174.04]
[1752664163072,4.13342778,166.4,166.31,174.04]
[1752664163073,2.64718175,166.34,166.31,174.04]
[1752664166977,137.33015892,166.41,166.31,174.04]
[1752664167173,2.64718175,166.34,166.32,5.9866121]
[1752664167476,2.64718175,166.34,166.31,174.04]
[1752664167676,2.64718175,166.34,166.32,5.9868312]
[1752664167877,2.64718175,166.34,166.31,174.04]
[1752664168077,2.64718175,166.34,166.32,5.98683038]
[1752664168278,2.64718175,166.34,166.31,174.04]
[1752664168473,2.64718175,166.34,166.32,5.9883536]
[1752664168777,2.64718175,166.34,166.31,174.04]
[1752664168977,2.64718175,166.34,166.32,5.9883536]
[1752664169278,2.64718175,166.35,166.31,174.04]
[1752664169478,2.64718175,166.35,166.32,5.98992783]
[1752664169673,13.33015892,166.4,166.31,174.04]
[1752664169874,2.64718175,166.39,166.34,2.64718175]
[1752664170079,2.64718175,166.39,166.35,174.02]
[1752664170778,2.64718175,166.38,166.35,174.02]
[1752664170978,2.64718175,166.37,166.35,174.02]
[1752664171978,2.64718175,166.38,166.35,174.02]
[1752664172480,2.64718175,166.37,166.35,174.02]
[1752664174681,124.0,166.41,166.35,174.02]
[1752664174882,2.64718175,166.38,166.35,174.02]
[1752664175683,2.64718175,166.37,166.35,174.02]
[1752664176983,2.64718175,166.37,166.3,519.36]
[1752664177191,2.64718175,166.37,166.33,2.64718175]
[1752664177392,2.64718175,166.37,166.34,180.02775799]
[1752664177593,2.64718175,166.37,166.34,174.0]
[1752664177789,2.64718175,166.35,166.3,522.00718175]
[1752664178095,2.64718175,166.35,166.31,180.02779984]
[1752664178391,2.64718175,166.35,166.32,6.02779984]
[1752664178591,2.64718175,166.35,166.31,174.0]
[1752664178790,2.64718175,166.35,166.32,6.02801423]
[1752664178989,4.13626612,166.36,166.31,174.0]
[1752664179190,4.13626612,166.36,166.32,6.02801423]
[1752664179393,4.13626612,166.36,166.31,174.0]
[1752664179589,4.13626612,166.36,166.32,6.02807544]
[1752664179890,4.13626612,166.36,166.31,174.0]
[1752664180093,4.13626612,166.36,166.32,6.0280751]
[1752664180391,4.13626612,166.36,166.31,174.0]
[1752664180593,4.13626612,166.36,166.32,6.0281358]
[1752664180791,4.13626612,166.36,166.31,174.0]
[1752664181088,4.13626612,166.36,166.32,6.0281358]
[1752664181290,4.13626612,166.36,166.31,174.0]
[1752664181490,4.13626612,166.36,166.32,6.02819672]
[1752664181693,4.13626612,166.36,166.31,174.0]
[1752664181889,4.13626612,166.36,166.32,6.02819672]
[1752664182185,4.13626612,166.36,166.31,174.0]
[1752664185794,13.33015892,166.4,166.31,174.0]
[1752664185986,4.13626612,166.38,166.31,174.0]
[1752664186297,13.33015892,166.4,166.31,174.0]
[1752664186492,4.13626612,166.38,166.31,174.0]
[1752664188997,4.13626612,166.36,166.32,173.98]
[1752664189396,4.13626612,166.36,166.33,6.02750201]
[1752664189698,4.13626612,166.36,166.32,173.98]
[1752664189996,4.13626612,166.36,166.33,6.02751686]
[1752664190197,4.13626612,166.36,166.32,173.98]
[1752664191599,4.13626612,166.36,166.33,173.96]
[1752664192898,13.33015892,166.4,166.33,173.96]
[1752664193201,4.13626612,166.37,166.33,173.96]
[1752664194702,4.13626612,166.37,166.29,5.14488612]
[1752664194903,4.13626612,166.37,166.3,179.98831036]
[1752664195098,4.13626612,166.37,166.31,179.98831036]
[1752664195298,4.13626612,166.37,166.32,6.02831036]
[1752664195499,4.13626612,166.37,166.31,173.96]
[1752664195699,4.13626612,166.37,166.32,6.02836353]
[1752664195998,4.13626612,166.37,166.31,173.96]
[1752664196195,4.13626612,166.37,166.32,6.02836353]
[1752664196392,4.13626612,166.37,166.31,173.96]
[1752664196595,4.13626612,166.37,166.32,6.02841769]
[1752664196794,4.13626612,166.37,166.31,173.96]
[1752664197201,4.13626612,166.37,166.32,6.02841771]
[1752664197502,4.13626612,166.37,166.31,173.96]
[1752664197704,4.13626612,166.37,166.32,6.02847236]
[1752664197904,4.13626612,166.37,166.31,173.96]
[1752664198200,4.13626612,166.37,166.32,6.02847195]
[1752664198395,4.13626612,166.37,166.31,173.96]
[1752664198600,4.13626612,166.37,166.32,6.02852719]
[1752664198800,4.13626612,166.37,166.31,173.96]
[1752664199001,2.64700677,166.35,166.32,6.02852719]
[1752664199203,2.64700677,166.35,166.31,173.96]
[1752664199405,2.64700677,166.35,166.32,6.02863722]
[1752664199705,2.64700677,166.35,166.31,173.96]
[1752664199906,2.64700677,166.35,166.32,6.02510264]
[1752664200106,2.64700677,166.35,166.31,173.96]
[1752664200310,13.33015892,166.4,166.32,6.02510264]
[1752664200499,2.64700677,166.35,166.31,173.96]
[1752664200699,13.33015892,166.4,166.32,6.02498796]
[1752664200906,2.64700677,166.35,166.31,173.96]
[1752664201206,2.64700677,166.35,166.32,6.02498714]
[1752664201406,2.64700677,166.35,166.31,173.96]
[1752664203509,2.64700677,166.35,166.32,6.02492982]
[1752664203708,2.64700677,166.35,166.31,173.96]
[1752664204008,2.64700677,166.35,166.32,6.02485336]
[1752664204307,2.64700677,166.35,166.31,173.96]
[1752664204508,2.64700677,166.35,166.32,6.02495405]
[1752664204706,2.64700677,166.35,166.31,173.96]
[1752664204908,2.64700677,166.35,166.32,6.02488961]
[1752664205099,2.64700677,166.35,166.33,6.02488961]
[1752664205299,2.64700677,166.35,166.31,173.96]
[1752664205502,13.33015892,166.39,166.32,6.02499315]
[1752664205710,13.33015892,166.39,166.33,6.02499315]
[1752664205907,2.64700677,166.36,166.31,173.96]
[1752664206106,2.64700677,166.36,166.32,6.02499233]
[1752664206305,2.64700677,166.36,166.33,6.02499233]
[1752664206507,2.64700677,166.36,166.31,173.96]
[1752664206809,2.64700677,166.36,166.32,6.02509044]
[1752664207005,2.64700677,166.36,166.33,6.02509044]
[1752664207206,2.64700677,166.36,166.31,173.96]
[1752664207406,2.64700677,166.36,166.32,6.02519435]
[1752664207708,2.64700677,166.36,166.33,6.02519435]
[1752664207901,2.64700677,166.36,166.32,2.64700677]
[1752664208104,2.64700677,166.36,166.33,6.02519435]
[1752664208303,2.64700677,166.36,166.32,2.64700677]
[1752664208506,2.64700677,166.36,166.33,6.02505654]
[1752664208706,2.64700677,166.36,166.34,6.02505654]
[1752664209005,2.64700677,166.36,166.35,173.92]
[1752664214613,13.33015892,166.4,166.35,173.92]
[1752664214818,2.64700677,166.36,166.35,173.92]
[1752664220610,2.64700677,166.36,166.32,173.88]
[1752664220818,13.33015892,166.39,166.32,173.88]
[1752664221010,2.64700677,166.34,166.32,173.88]
[1752664223819,2.64700677,166.33,166.32,173.88]
[1752664230325,13.33015892,166.38,166.32,173.88]
[1752664230520,2.64700677,166.33,166.32,173.88]
[1752664231414,2.64700677,166.33,166.29,1.00862]
[1752664231621,2.64700677,166.3,166.29,1.00862]
[1752664231918,2.64700677,166.3,166.29,7.02439048]
[1752664233425,13.33015892,166.35,166.29,7.02439048]
[1752664233728,2.64700677,166.32,166.3,6.0140392]
[1752664234026,2.64700677,166.32,166.29,1.00862]
[1752664235826,2.64700677,166.32,166.3,6.01323972]
[1752664236021,2.64700677,166.32,166.29,1.00862]
[1752664236225,2.64700677,166.32,166.3,6.01307763]
[1752664236427,2.64700677,166.32,166.29,1.00862]
[1752664236720,2.64700677,166.32,166.3,6.01295476]
[1752664236919,2.64700677,166.32,166.29,1.00862]
[1752664237120,2.64700677,166.32,166.3,6.01295476]
[1752664237323,2.64700677,166.32,166.29,1.00862]
[1752664237626,2.64700677,166.32,166.3,6.01269676]
[1752664237828,2.64700677,166.32,166.29,1.00862]
[1752664238028,2.64700677,166.32,166.3,6.01269676]
[1752664238229,2.64700677,166.33,166.31,173.86]
[1752664238429,13.33015892,166.38,166.31,173.86]
[1752664238626,162.95299709,166.39,166.31,176.50700677]
[1752664238922,2.64700677,166.35,166.31,176.50700677]
[1752664241624,2.64700677,166.34,166.31,173.86]
[1752664242229,162.95299709,166.39,166.3,173.84]
[1752664242230,2.64700677,166.32,166.3,173.84]
[1752664242426,2.64700677,166.31,166.3,173.84]
[1752664242623,2.64700677,166.32,166.3,179.85066141]
[1752664242927,2.64700677,166.32,166.3,173.84]
[1752664247634,2.64700677,166.34,166.3,176.48700677]
[1752664248035,162.95299709,166.39,166.31,2.64700677]
[1752664248240,2.64700677,166.35,166.31,2.64700677]
[1752664248438,2.64700677,166.34,166.3,176.48700677]
[1752664250439,2.64700677,166.35,166.3,176.48700677]
[1752664251241,2.64700677,166.34,166.3,176.48700677]
[1752664251742,2.64700677,166.34,166.31,6.00984677]
[1752664252039,2.64700677,166.34,166.3,176.48700677]
[1752664252242,2.64700677,166.34,166.31,6.00998548]
[1752664252438,2.64700677,166.35,166.3,176.48700677]
[1752664252641,2.64700677,166.35,166.31,8.65699225]
[1752664252844,2.64700677,166.35,166.31,2.64700677]